[Event "RUS-ch Blitz Women 2018"]
[Site "Sochi"]
[Date "2018.10.07"]
[Round "5"]
[White "Lysenko, Margarita"]
[Black "Maltsevskaya, Aleksandra"]
[Result "1/2-1/2"]
[ECO "A15"]
[WhiteElo "2210"]
[BlackElo "2290"]
[Annotator "NA"]
[PlyCount "209"]
[EventDate "2018.10.07"]
[EventType "swiss"]
[EventCountry "RUS"]
[SourceTitle "playchess.com"]
[Source "ChessBase"]
[SourceQuality "1"]
[TimeControl "180+2"]

1. c4 {[%emt 0:00:00]} Nf6 {[%emt 0:00:01]} 2. Nf3 {[%emt 0:00:02]} g6 {[%emt 0:00:00]} 3. g3 {[%emt 0:00:01]} Bg7 {[%emt 0:00:01]} 4. Bg2 {[%emt 0:00:02]} d6 {[%emt 0:00:01]} 5. O-O {[%emt 0:00:04]} O-O {[%emt 0:00:02]} 6. Nc3 {[%emt 0:00:01]} e5 {[%emt 0:00:01]} 7. d3 {[%emt 0:00:01]} Nc6 {[%emt 0:00:07]} 8. Bg5 {[%emt 0:00:03]} h6 {[%emt 0:00:02]} 9. Bd2 {[%emt 0:00:01]} Kh7 {[%emt 0:00:01]} 10. Rb1 {[%emt 0:00:05]} a5 {[%emt 0:00:01]} 11. a3 {[%emt 0:00:03]} Ne8 {[%emt 0:00:03]} 12. b4 {[%emt 0:00:03]} axb4 {[%emt 0:00:01]} 13. axb4 {[%emt 0:00:01]} f5 {[%emt 0:00:01]} 14. b5 {[%emt 0:00:16]} Ne7 {[%emt 0:00:02]} 15. Ne1 {[%emt 0:00:23]} Rb8 {[%emt 0:00:07]} 16. Nc2 {[%emt 0:00:02]} f4 {[%emt 0:00:18]} 17. Nb4 {[%emt 0:00:12]} Nf6 {[%emt 0:00:04]} 18. Qc2 {[%emt 0:00:27]} fxg3 {[%emt 0:00:34]} 19. hxg3 {[%emt 0:00:07]} Nf5 {[%emt 0:00:31]} 20. Nbd5 {[%emt 0:00:38]} Nxd5 {[%emt 0:00:12]} 21. cxd5 {[%emt 0:00:09]} b6 {[%emt 0:00:08]} 22. e3 {[%emt 0:00:27]} h5 {[%emt 0:00:16]} 23. Ne4 {[%emt 0:00:08]} Rf7 {[%emt 0:00:17]} 24. Qd1 {[%emt 0:00:16]} Bb7 {[%emt 0:00:07]} 25. Qe2 {[%emt 0:00:06]} Qe7 {[%emt 0:00:09]} 26. Rbc1 {[%emt 0:00:05]} Rbf8 {[%emt 0:00:02]} 27. g4 {[%emt 0:00:04]} hxg4 {[%emt 0:00:08]} 28. Qxg4 {[%emt 0:00:02]} Bh6 {[%emt 0:00:00]} 29. Bh3 {[%emt 0:00:04]} Nh4 {[%emt 0:00:05]} 30. f4 {[%emt 0:00:03]} exf4 {[%emt 0:00:18]} 31. exf4 {[%emt 0:00:01]} Bc8 {[%emt 0:00:01]} 32. Qg3 {[%emt 0:00:02]} Nf5 {[%emt 0:00:01]} 33. Bxf5 {[%emt 0:00:02]} Bxf5 {[%emt 0:00:02]} 34. Rce1 {[%emt 0:00:03]} Qd7 {[%emt 0:00:01]} 35. Ng5+ {[%emt 0:00:02]} Bxg5 {[%emt 0:00:01]} 36. fxg5 {[%emt 0:00:02]} Kg8 {[%emt 0:00:05]} 37. Bc3 {[%emt 0:00:01]} Qxb5 {[%emt 0:00:01]} 38. Qh4 {[%emt 0:00:03]} Rh7 {[%emt 0:00:03]} 39. Qd4 {[%emt 0:00:02]} Qc5 {[%emt 0:00:08]} 40. Qxc5 {[%emt 0:00:03]} bxc5 {[%emt 0:00:01]} 41. Rf3 {[%emt 0:00:01]} Rh4 {[%emt 0:00:03]} 42. Rfe3 {[%emt 0:00:01]} Rg4+ {[%emt 0:00:07]} 43. Kh2 {[%emt 0:00:01]} Rxg5 {[%emt 0:00:01]} 44. Re7 {[%emt 0:00:01]} Rh5+ {[%emt 0:00:01]} 45. Kg2 {[%emt 0:00:04]} Rg5+ {[%emt 0:00:07]} 46. Kh2 {[%emt 0:00:02]} Rh5+ {[%emt 0:00:01]} 47. Kg2 {[%emt 0:00:01]} Rg5+ {[%emt 0:00:04]} 48. Kh2 {[%emt 0:00:02]} Rh5+ {[%emt 0:00:01]} 49. Kg2 {[%emt 0:00:01]} Rh7 {[%emt 0:00:01]} 50. Rxh7 {[%emt 0:00:04]} Kxh7 {[%emt 0:00:01]} 51. Re7+ {[%emt 0:00:01]} Kg8 {[%emt 0:00:01]} 52. Rg7+ {[%emt 0:00:01]} Kh8 {[%emt 0:00:01]} 53. Rxc7+ {[%emt 0:00:01]} Kg8 {[%emt 0:00:02]} 54. Rg7+ {[%emt 0:00:02]} Kh8 {[%emt 0:00:00]} 55. Rc7+ {[%emt 0:00:04]} Kg8 {[%emt 0:00:02]} 56. Rg7+ {[%emt 0:00:02]} Kh8 {[%emt 0:00:00]} 57. Rc7+ {[%emt 0:00:02]} Kg8 {[%emt 0:00:01]} 58. Rg7+ {[%emt 0:00:03]} Kh8 {[%emt 0:00:01]} 59. Rxg6+ {[%emt 0:00:03]} Kh7 {[%emt 0:00:01]} 60. Rxd6 {[%emt 0:00:02]} Bxd3 {[%emt 0:00:05]} 61. Rd7+ {[%emt 0:00:02]} Kg6 {[%emt 0:00:01]} 62. Rc7 {[%emt 0:00:02]} c4 {[%emt 0:00:09]} 63. d6 {[%emt 0:00:02]} Be4+ {[%emt 0:00:02]} 64. Kg1 {[%emt 0:00:02]} Rd8 {[%emt 0:00:06]} 65. Rxc4 {[%emt 0:00:03]} Bd5 {[%emt 0:00:03]} 66. Rd4 {[%emt 0:00:02]} Rxd6 {[%emt 0:00:02]} 67. Bb4 {[%emt 0:00:01]} Rd7 {[%emt 0:00:01]} 68. Bc5 {[%emt 0:00:01]} Kf5 {[%emt 0:00:01]} 69. Rd2 {[%emt 0:00:03]} Rg7+ {[%emt 0:00:02]} 70. Kf2 {[%emt 0:00:02]} Ke6 {[%emt 0:00:05]} 71. Re2+ {[%emt 0:00:01]} Kf5 {[%emt 0:00:01]} 72. Bd4 {[%emt 0:00:03]} Rg2+ {[%emt 0:00:02]} 73. Ke3 {[%emt 0:00:01]} Rg4 {[%emt 0:00:01]} 74. Rf2+ {[%emt 0:00:02]} Ke6 {[%emt 0:00:02]} 75. Rf6+ {[%emt 0:00:01]} Kd7 {[%emt 0:00:00]} 76. Rh6 {[%emt 0:00:02]} Re4+ {[%emt 0:00:03]} 77. Kd3 {[%emt 0:00:01]} Rg4 {[%emt 0:00:01]} 78. Kc3 {[%emt 0:00:01]} Be6 {[%emt 0:00:03]} 79. Rf6 {[%emt 0:00:04]} Kd6 {[%emt 0:00:00]} 80. Rf2 {[%emt 0:00:02]} Rg3+ {[%emt 0:00:04]} 81. Kd2 {[%emt 0:00:03]} Kd5 {[%emt 0:00:01]} 82. Be3 {[%emt 0:00:03]} Rg4 {[%emt 0:00:02]} 83. Rf4 {[%emt 0:00:01]} Rg2+ {[%emt 0:00:04]} 84. Rf2 {[%emt 0:00:01]} Rg7 {[%emt 0:00:01]} 85. Rf4 {[%emt 0:00:02]} Rb7 {[%emt 0:00:01]} 86. Rd4+ {[%emt 0:00:01]} Ke5 {[%emt 0:00:00]} 87. Rh4 {[%emt 0:00:04]} Bf5 {[%emt 0:00:02]} 88. Rd4 {[%emt 0:00:04]} Rb2+ {[%emt 0:00:02]} 89. Ke1 {[%emt 0:00:02]} Be4 {[%emt 0:00:03]} 90. Rd2 {[%emt 0:00:01]} Rb3 {[%emt 0:00:05]} 91. Bd4+ {[%emt 0:00:02]} Kf4 {[%emt 0:00:02]} 92. Ba7 {[%emt 0:00:03]} Bd3 {[%emt 0:00:04]} 93. Rf2+ {[%emt 0:00:02]} Ke4 {[%emt 0:00:01]} 94. Rf8 {[%emt 0:00:02]} Bc4 {[%emt 0:00:02]} 95. Re8+ {[%emt 0:00:01]} Kd3 {[%emt 0:00:02]} 96. Rd8+ {[%emt 0:00:01]} Kc2 {[%emt 0:00:01]} 97. Rd2+ {[%emt 0:00:02]} Kc1 {[%emt 0:00:02]} 98. Rd4 {[%emt 0:00:03]} Bd3 {[%emt 0:00:03]} 99. Bc5 {[%emt 0:00:02]} Kc2 {[%emt 0:00:01]} 100. Rd8 {[%emt 0:00:02]} Rb5 {[%emt 0:00:02]} 101. Be3 {[%emt 0:00:03]} Rf5 {[%emt 0:00:03]} 102. Rc8+ {[%emt 0:00:01]} Kb3 {[%emt 0:00:01]} 103. Kd2 {[%emt 0:00:01]} Bb5 {[%emt 0:00:02]} 104. Rc5 {[%emt 0:00:02]} Rxc5 {[%emt 0:00:03]} 105. Bxc5 {[%emt 0:00:01]} 1/2-1/2

[Event "RUS-ch Blitz Women 2018"]
[Site "Sochi"]
[Date "2018.10.07"]
[Round "5"]
[White "Markelova, Lubov"]
[Black "Kovanova, Baira"]
[Result "1-0"]
[ECO "A17"]
[WhiteElo "2190"]
[BlackElo "2350"]
[Annotator "ChessBase"]
[PlyCount "85"]
[EventDate "2018.10.07"]
[EventType "swiss"]
[EventCountry "RUS"]
[SourceTitle "playchess.com"]
[Source "ChessBase"]
[SourceQuality "1"]
[TimeControl "180+2"]

1. Nf3 {[%emt 0:00:00]} Nf6 {[%emt 0:00:00]} 2. c4 {[%emt 0:00:00]} e6 {[%emt 0:00:03]} 3. Nc3 {[%emt 0:00:08]} b6 {[%emt 0:00:05]} 4. g3 {[%emt 0:00:02]} Bb7 {[%emt 0:00:01]} 5. Bg2 {[%emt 0:00:01]} Be7 {[%emt 0:00:02]} 6. O-O {[%emt 0:00:01]} O-O {[%emt 0:00:05]} 7. Re1 {[%emt 0:00:01]} d5 {[%emt 0:00:21]} 8. cxd5 {[%emt 0:00:02]} exd5 {[%emt 0:00:01]} 9. d4 {[%emt 0:00:01]} Nbd7 {[%emt 0:00:03]} 10. Bf4 {[%emt 0:00:02]} Nh5 {[%emt 0:00:06]} 11. Ne5 {[%emt 0:00:25]} Nxe5 {[%emt 0:00:19]} 12. Bxe5 {[%emt 0:00:11]} f6 {[%emt 0:00:01]} 13. Bf4 {[%emt 0:00:01]} Nxf4 {[%emt 0:00:02]} 14. gxf4 {[%emt 0:00:01]} Kh8 {[%emt 0:00:28]} 15. e3 {[%emt 0:00:15]} c6 {[%emt 0:00:05]} 16. Qh5 {[%emt 0:00:09]} Qe8 {[%emt 0:00:14]} 17. Qf3 {[%emt 0:00:13]} Qg6 {[%emt 0:00:07]} 18. Qg3 {[%emt 0:00:06]} Qh6 {[%emt 0:00:09]} 19. Qh3 {[%emt 0:00:16]} Qxh3 {[%emt 0:00:02]} 20. Bxh3 {[%emt 0:00:01]} Rad8 {[%emt 0:00:06]} 21. Rac1 {[%emt 0:00:05]} Bd6 {[%emt 0:00:06]} 22. Ne2 {[%emt 0:00:11]} g6 {[%emt 0:00:06]} 23. a3 {[%emt 0:00:16]} Kg7 {[%emt 0:00:02]} 24. Rc3 {[%emt 0:00:07]} c5 {[%emt 0:00:11]} 25. dxc5 {[%emt 0:00:20]} bxc5 {[%emt 0:00:01]} 26. Bg2 {[%emt 0:00:30]} Rfe8 {[%emt 0:00:15]} 27. b4 {[%emt 0:00:12]} cxb4 {[%emt 0:00:13]} 28. axb4 {[%emt 0:00:01]} Bxb4 {[%emt 0:00:01]} 29. Rc7+ {[%emt 0:00:01]} Re7 {[%emt 0:00:02]} 30. Rxe7+ {[%emt 0:00:05]} Bxe7 {[%emt 0:00:01]} 31. Nd4 {[%emt 0:00:01]} Kf7 {[%emt 0:00:04]} 32. Rb1 {[%emt 0:00:02]} Rd7 {[%emt 0:00:09]} 33. Rxb7 {[%emt 0:00:03]} Rxb7 {[%emt 0:00:02]} 34. Bxd5+ {[%emt 0:00:01]} Kg7 {[%emt 0:00:06]} 35. Bxb7 {[%emt 0:00:01]} a5 {[%emt 0:00:01]} 36. Bc6 {[%emt 0:00:02]} f5 {[%emt 0:00:04]} 37. Kf1 {[%emt 0:00:02]} Kf6 {[%emt 0:00:01]} 38. Ke2 {[%emt 0:00:03]} Bb4 {[%emt 0:00:01]} 39. Kd3 {[%emt 0:00:03]} Be1 {[%emt 0:00:06]} 40. f3 {[%emt 0:00:02]} g5 {[%emt 0:00:04]} 41. fxg5+ {[%emt 0:00:05]} Kxg5 {[%emt 0:00:00]} 42. Bd7 {[%emt 0:00:02]} f4 {[%emt 0:00:06]} 43. Ne6+ {[%emt 0:00:01]} 1-0

[Event "RUS-ch Blitz Women 2018"]
[Site "Sochi"]
[Date "2018.10.07"]
[Round "5"]
[White "Ivanova, Karina"]
[Black "Chernyak, Viktoria"]
[Result "1-0"]
[ECO "A06"]
[WhiteElo "2124"]
[BlackElo "2200"]
[Annotator "ChessBase"]
[PlyCount "56"]
[EventDate "2018.10.07"]
[EventType "swiss"]
[EventCountry "RUS"]
[SourceTitle "playchess.com"]
[Source "ChessBase"]
[SourceQuality "1"]
[TimeControl "180+2"]

1. Nf3 {[%emt 0:00:00]} d5 {[%emt 0:00:00]} 2. g3 {[%emt 0:00:01]} Nf6 {[%emt 0:00:00]} 3. Bg2 {[%emt 0:00:01]} c6 {[%emt 0:00:10]} 4. O-O {[%emt 0:00:03]} Bf5 {[%emt 0:00:04]} 5. c4 {[%emt 0:00:02]} h6 {[%emt 0:00:09]} 6. d3 {[%emt 0:00:12]} e6 {[%emt 0:00:01]} 7. cxd5 {[%emt 0:00:02]} cxd5 {[%emt 0:00:10]} 8. Nd4 {[%emt 0:00:13]} Bh7 {[%emt 0:00:05]} 9. Nc3 {[%emt 0:00:11]} Nc6 {[%emt 0:00:01]} 10. Qa4 {[%emt 0:00:15]} Qd7 {[%emt 0:00:01]} 11. Bd2 {[%emt 0:00:42]} Be7 {[%emt 0:00:15]} 12. Rac1 {[%emt 0:00:05]} O-O {[%emt 0:00:11]} 13. Nxc6 {[%emt 0:00:12]} bxc6 {[%emt 0:00:03]} 14. Rfd1 {[%emt 0:00:31]} Rab8 {[%emt 0:00:06]} 15. Qc2 {[%emt 0:00:07]} Rfc8 {[%emt 0:00:06]} 16. e4 {[%emt 0:00:03]} Qb7 {[%emt 0:00:06]} 17. b3 {[%emt 0:00:06]} Qa6 {[%emt 0:00:30]} 18. Bf4 {[%emt 0:00:03]} Ra8 {[%emt 0:00:16]} 19. Na4 {[%emt 0:00:10]} Nd7 {[%emt 0:00:11]} 20. Qe2 {[%emt 0:00:10]} Qb5 {[%emt 0:00:33]} 21. Nc3 {[%emt 0:00:05]} Qa5 {[%emt 0:00:01]} 22. exd5 {[%emt 0:00:08]} cxd5 {[%emt 0:00:03]} 23. Nxd5 {[%emt 0:00:03]} Ba3 {[%emt 0:00:10]} 24. b4 {[%emt 0:00:11]} Qa4 {[%emt 0:00:11]} 25. Ne7+ {[%emt 0:00:03]} Kf8 {[%emt 0:00:02]} 26. Rxc8+ {[%emt 0:00:02]} Rxc8 {[%emt 0:00:02]} 27. Nxc8 {[%emt 0:00:01]} Qxb4 {[%emt 0:00:01]} 28. Bd6+ {[%emt 0:00:01]} Ke8 1-0

[Event "RUS-ch Blitz Women 2018"]
[Site "Sochi"]
[Date "2018.10.07"]
[Round "6"]
[White "Ambartsumova, Karina"]
[Black "Vasilevich, Tatjana"]
[Result "1-0"]
[ECO "B47"]
[WhiteElo "2379"]
[BlackElo "2360"]
[Annotator "NA"]
[PlyCount "77"]
[EventDate "2018.10.07"]
[EventType "swiss"]
[EventCountry "RUS"]
[SourceTitle "playchess.com"]
[Source "ChessBase"]
[SourceQuality "1"]
[TimeControl "180+2"]

1. e4 {[%emt 0:00:00]} c5 {[%emt 0:00:00]} 2. Nf3 {[%emt 0:00:00]} e6 {[%emt 0:00:00]} 3. d4 {[%emt 0:00:02]} cxd4 {[%emt 0:00:00]} 4. Nxd4 {[%emt 0:00:01]} Nc6 {[%emt 0:00:01]} 5. Nc3 {[%emt 0:00:02]} Qc7 {[%emt 0:00:01]} 6. Be2 {[%emt 0:00:04]} a6 {[%emt 0:00:00]} 7. O-O {[%emt 0:00:05]} Nf6 {[%emt 0:00:01]} 8. Be3 {[%emt 0:00:02]} Bb4 {[%emt 0:00:01]} 9. Nxc6 {[%emt 0:00:06]} bxc6 {[%emt 0:00:02]} 10. f4 {[%emt 0:00:02]} Bxc3 {[%emt 0:00:15]} 11. bxc3 {[%emt 0:00:00]} Nxe4 {[%emt 0:00:01]} 12. Qd4 {[%emt 0:00:15]} Nf6 {[%emt 0:00:04]} 13. f5 {[%emt 0:00:01]} e5 {[%emt 0:00:18]} 14. Qh4 {[%emt 0:00:01]} d6 {[%emt 0:00:15]} 15. Bg5 {[%emt 0:00:12]} Nd5 {[%emt 0:00:07]} 16. f6 {[%emt 0:00:50]} g6 {[%emt 0:00:33]} 17. c4 {[%emt 0:00:12]} Qa7+ {[%emt 0:00:10]} 18. Kh1 {[%emt 0:00:07]} Ne3 {[%emt 0:00:05]} 19. Rfc1 {[%emt 0:00:23]} h6 {[%emt 0:00:21]} 20. Bxe3 {[%emt 0:00:17]} Qxe3 {[%emt 0:00:01]} 21. Bf3 {[%emt 0:00:02]} Bd7 {[%emt 0:00:11]} 22. Rd1 {[%emt 0:00:05]} Qc5 {[%emt 0:00:06]} 23. Rab1 {[%emt 0:00:06]} g5 {[%emt 0:00:17]} 24. Qe4 {[%emt 0:00:06]} O-O {[%emt 0:00:14]} 25. Rb3 {[%emt 0:00:21]} Be6 {[%emt 0:00:05]} 26. Be2 {[%emt 0:00:06]} Rab8 {[%emt 0:00:09]} 27. h4 {[%emt 0:00:04]} Rxb3 {[%emt 0:00:06]} 28. cxb3 {[%emt 0:00:01]} Qf2 {[%emt 0:00:04]} 29. Rxd6 {[%emt 0:00:19]} Qe1+ {[%emt 0:00:09]} 30. Kh2 {[%emt 0:00:01]} g4 {[%emt 0:00:04]} 31. Rd3 {[%emt 0:00:01]} Qxh4+ {[%emt 0:00:02]} 32. Kg1 {[%emt 0:00:01]} Qe1+ {[%emt 0:00:02]} 33. Kh2 {[%emt 0:00:00]} Qh4+ {[%emt 0:00:01]} 34. Kg1 {[%emt 0:00:01]} Qxf6 {[%emt 0:00:05]} 35. Bxg4 {[%emt 0:00:03]} Kh8 {[%emt 0:00:04]} 36. Rf3 {[%emt 0:00:03]} Qg7 {[%emt 0:00:09]} 37. Bxe6 {[%emt 0:00:01]} Rg8 {[%emt 0:00:03]} 38. Rxf7 {[%emt 0:00:03]} Qg5 {[%emt 0:00:03]} 39. Qh7# {[%emt 0:00:01]} 1-0

[Event "RUS-ch Blitz Women 2018"]
[Site "Sochi"]
[Date "2018.10.07"]
[Round "6"]
[White "Voit, Daria"]
[Black "Baraeva, Marina"]
[Result "1-0"]
[ECO "D10"]
[WhiteElo "2352"]
[BlackElo "2227"]
[Annotator "NA"]
[PlyCount "97"]
[EventDate "2018.10.07"]
[EventType "swiss"]
[EventCountry "RUS"]
[SourceTitle "playchess.com"]
[Source "ChessBase"]
[SourceQuality "1"]
[TimeControl "180+2"]

1. d4 {[%emt 0:00:00]} d5 {[%emt 0:00:00]} 2. c4 {[%emt 0:00:00]} c6 {[%emt 0:00:00]} 3. Nc3 {[%emt 0:00:03]} Nf6 {[%emt 0:00:01]} 4. e3 {[%emt 0:00:01]} g6 {[%emt 0:00:04]} 5. Nf3 {[%emt 0:00:02]} Bg7 {[%emt 0:00:01]} 6. Bd3 {[%emt 0:00:02]} O-O {[%emt 0:00:03]} 7. O-O {[%emt 0:00:01]} dxc4 {[%emt 0:00:01]} 8. Bxc4 {[%emt 0:00:02]} Bg4 {[%emt 0:00:08]} 9. h3 {[%emt 0:00:01]} Bxf3 {[%emt 0:00:01]} 10. Qxf3 {[%emt 0:00:01]} Nbd7 {[%emt 0:00:02]} 11. Rd1 {[%emt 0:00:04]} Qc7 {[%emt 0:00:01]} 12. Bd2 {[%emt 0:00:12]} e5 {[%emt 0:00:02]} 13. d5 {[%emt 0:00:04]} Nb6 {[%emt 0:00:13]} 14. Bb3 {[%emt 0:00:30]} cxd5 {[%emt 0:00:02]} 15. Nxd5 {[%emt 0:00:06]} Nfxd5 {[%emt 0:00:06]} 16. Bxd5 {[%emt 0:00:01]} Nxd5 {[%emt 0:00:01]} 17. Qxd5 {[%emt 0:00:02]} Rfd8 {[%emt 0:00:02]} 18. Qb3 {[%emt 0:00:02]} e4 {[%emt 0:00:04]} 19. Bb4 {[%emt 0:00:05]} Rxd1+ {[%emt 0:00:12]} 20. Rxd1 {[%emt 0:00:02]} Rd8 {[%emt 0:00:01]} 21. Rxd8+ {[%emt 0:00:33]} Qxd8 {[%emt 0:00:01]} 22. Qc2 {[%emt 0:00:01]} b6 {[%emt 0:01:19]} 23. b3 {[%emt 0:00:02]} Qe8 {[%emt 0:00:05]} 24. Qc7 {[%emt 0:00:06]} Qa8 {[%emt 0:00:06]} 25. g3 {[%emt 0:00:15]} h5 {[%emt 0:00:02]} 26. Kg2 {[%emt 0:00:03]} Bf6 {[%emt 0:00:19]} 27. Bd6 {[%emt 0:00:14]} Kg7 {[%emt 0:00:05]} 28. Bb4 {[%emt 0:00:24]} Bd8 {[%emt 0:00:11]} 29. Qd6 {[%emt 0:00:26]} Bf6 {[%emt 0:00:03]} 30. a4 {[%emt 0:00:02]} Qb7 {[%emt 0:00:06]} 31. Qf8+ {[%emt 0:00:03]} Kh7 {[%emt 0:00:01]} 32. Qd6 {[%emt 0:00:08]} Kg7 {[%emt 0:00:03]} 33. Ba3 {[%emt 0:00:01]} Qc8 {[%emt 0:00:07]} 34. Qd5 {[%emt 0:00:12]} Qe8 {[%emt 0:00:02]} 35. Qb7 {[%emt 0:00:07]} Qe6 {[%emt 0:00:01]} 36. Qxa7 {[%emt 0:00:07]} Qxb3 {[%emt 0:00:02]} 37. Bd6 {[%emt 0:00:03]} Qd1 {[%emt 0:00:14]} 38. Qxb6 {[%emt 0:00:02]} Qf3+ {[%emt 0:00:02]} 39. Kg1 {[%emt 0:00:01]} Qd1+ {[%emt 0:00:01]} 40. Kh2 {[%emt 0:00:01]} Qe2 {[%emt 0:00:08]} 41. Bf8+ {[%emt 0:00:01]} Kxf8 {[%emt 0:00:05]} 42. Qxf6 {[%emt 0:00:01]} Qc2 {[%emt 0:00:08]} 43. a5 {[%emt 0:00:04]} Qa2 {[%emt 0:00:04]} 44. a6 {[%emt 0:00:01]} Kg8 {[%emt 0:00:01]} 45. Kg2 {[%emt 0:00:02]} Kf8 {[%emt 0:00:02]} 46. Qd6+ {[%emt 0:00:07]} Kg8 {[%emt 0:00:02]} 47. Qb8+ {[%emt 0:00:01]} Kg7 {[%emt 0:00:00]} 48. a7 {[%emt 0:00:01]} Qe2 {[%emt 0:00:06]} 49. Qe5+ {[%emt 0:00:01]} 1-0

[Event "RUS-ch Blitz Women 2018"]
[Site "Sochi"]
[Date "2018.10.07"]
[Round "6"]
[White "Kovanova, Baira"]
[Black "Markelova, Lubov"]
[Result "1-0"]
[ECO "A11"]
[WhiteElo "2350"]
[BlackElo "2190"]
[Annotator "NA"]
[PlyCount "85"]
[EventDate "2018.10.07"]
[EventType "swiss"]
[EventCountry "RUS"]
[SourceTitle "playchess.com"]
[Source "ChessBase"]
[SourceQuality "1"]
[TimeControl "180+2"]

1. c4 {[%emt 0:00:00]} c6 {[%emt 0:00:00]} 2. Nc3 {[%emt 0:00:00]} d5 {[%emt 0:00:01]} 3. e3 {[%emt 0:00:01]} Nf6 {[%emt 0:00:03]} 4. Nf3 {[%emt 0:00:01]} e6 {[%emt 0:00:05]} 5. b3 {[%emt 0:00:02]} Be7 {[%emt 0:00:03]} 6. Be2 {[%emt 0:00:01]} O-O {[%emt 0:00:03]} 7. Bb2 {[%emt 0:00:02]} c5 {[%emt 0:00:04]} 8. cxd5 {[%emt 0:00:29]} exd5 {[%emt 0:00:02]} 9. d4 {[%emt 0:00:01]} Nc6 {[%emt 0:00:11]} 10. dxc5 {[%emt 0:00:17]} Bxc5 {[%emt 0:00:01]} 11. O-O {[%emt 0:00:02]} Bg4 {[%emt 0:00:03]} 12. h3 {[%emt 0:00:04]} Bh5 {[%emt 0:00:19]} 13. Rc1 {[%emt 0:00:06]} Bd6 {[%emt 0:00:30]} 14. Nb5 {[%emt 0:00:18]} Bb8 {[%emt 0:00:23]} 15. Bxf6 {[%emt 0:00:23]} Qxf6 {[%emt 0:00:08]} 16. Qxd5 {[%emt 0:00:01]} Bg6 {[%emt 0:00:11]} 17. Nfd4 {[%emt 0:00:07]} Nxd4 {[%emt 0:00:09]} 18. Nxd4 {[%emt 0:00:22]} Be5 {[%emt 0:00:07]} 19. Nf3 {[%emt 0:00:08]} Bb2 {[%emt 0:00:23]} 20. Rc7 {[%emt 0:00:01]} b6 {[%emt 0:00:06]} 21. Rd7 {[%emt 0:00:18]} Bf5 {[%emt 0:00:12]} 22. Rd6 {[%emt 0:00:02]} Be6 {[%emt 0:00:03]} 23. Qg5 {[%emt 0:00:10]} Rfd8 {[%emt 0:00:14]} 24. Qxf6 {[%emt 0:00:05]} Bxf6 {[%emt 0:00:02]} 25. Rxd8+ {[%emt 0:00:16]} Rxd8 {[%emt 0:00:01]} 26. Rc1 {[%emt 0:00:02]} Bd5 {[%emt 0:00:19]} 27. Nd4 {[%emt 0:00:15]} Be4 {[%emt 0:00:03]} 28. f3 {[%emt 0:00:05]} Bxd4 {[%emt 0:00:05]} 29. exd4 {[%emt 0:00:03]} Bg6 {[%emt 0:00:03]} 30. Rc7 {[%emt 0:00:07]} Bb1 {[%emt 0:00:03]} 31. Rxa7 {[%emt 0:00:03]} h6 {[%emt 0:00:02]} 32. Bc4 {[%emt 0:00:01]} Rxd4 {[%emt 0:00:02]} 33. Bxf7+ {[%emt 0:00:02]} Kf8 {[%emt 0:00:01]} 34. Bc4 {[%emt 0:00:01]} Rd2 {[%emt 0:00:02]} 35. Rf7+ {[%emt 0:00:03]} Ke8 {[%emt 0:00:01]} 36. Rxg7 {[%emt 0:00:01]} Bxa2 {[%emt 0:00:02]} 37. Rg6 {[%emt 0:00:01]} Rd1+ {[%emt 0:00:03]} 38. Kh2 {[%emt 0:00:01]} Rb1 {[%emt 0:00:03]} 39. Rxb6 {[%emt 0:00:01]} h5 {[%emt 0:00:01]} 40. Rh6 {[%emt 0:00:02]} Bxb3 41. Bxb3 {[%emt 0:00:01]} Rxb3 {[%emt 0:00:02]} 42. Rxh5 {[%emt 0:00:00]} Kf7 {[%emt 0:00:02]} 43. Ra5 {[%emt 0:00:01]} 1-0

[Event "RUS-ch Blitz Women 2018"]
[Site "Sochi"]
[Date "2018.10.07"]
[Round "6"]
[White "Maltsevskaya, Aleksandra"]
[Black "Lysenko, Margarita"]
[Result "0-1"]
[ECO "A25"]
[WhiteElo "2290"]
[BlackElo "2210"]
[Annotator "NA"]
[PlyCount "112"]
[EventDate "2018.10.07"]
[EventType "swiss"]
[EventCountry "RUS"]
[SourceTitle "playchess.com"]
[Source "ChessBase"]
[SourceQuality "1"]
[TimeControl "180+2"]

1. c4 {[%emt 0:00:00]} e5 {[%emt 0:00:08]} 2. Nc3 {[%emt 0:00:02]} Nc6 {[%emt 0:00:08]} 3. g3 {[%emt 0:00:02]} g6 {[%emt 0:00:04]} 4. Bg2 {[%emt 0:00:01]} Bg7 {[%emt 0:00:01]} 5. e4 {[%emt 0:00:04]} Nge7 {[%emt 0:00:02]} 6. Nge2 {[%emt 0:00:02]} O-O {[%emt 0:00:02]} 7. d3 {[%emt 0:00:01]} a6 {[%emt 0:00:10]} 8. O-O {[%emt 0:00:19]} Rb8 {[%emt 0:00:00]} 9. c5 {[%emt 0:00:04]} d6 {[%emt 0:00:09]} 10. cxd6 {[%emt 0:00:03]} Qxd6 {[%emt 0:00:01]} 11. a4 {[%emt 0:00:22]} Be6 {[%emt 0:00:07]} 12. b3 {[%emt 0:00:33]} Rfd8 {[%emt 0:00:03]} 13. Ba3 {[%emt 0:00:22]} Qxd3 {[%emt 0:00:53]} 14. Qc1 {[%emt 0:00:06]} Qd7 {[%emt 0:00:05]} 15. Nd5 {[%emt 0:00:17]} Nxd5 {[%emt 0:00:10]} 16. exd5 {[%emt 0:00:03]} Bxd5 {[%emt 0:00:01]} 17. Rd1 {[%emt 0:00:01]} Qe6 {[%emt 0:00:01]} 18. Qe3 {[%emt 0:00:18]} Bxb3 {[%emt 0:00:15]} 19. Rxd8+ {[%emt 0:00:04]} Rxd8 {[%emt 0:00:02]} 20. h4 {[%emt 0:00:07]} Bd5 {[%emt 0:00:07]} 21. Bf1 {[%emt 0:00:05]} Nd4 {[%emt 0:00:06]} 22. Nxd4 {[%emt 0:00:07]} exd4 {[%emt 0:00:02]} 23. Qxe6 {[%emt 0:00:03]} fxe6 {[%emt 0:00:08]} 24. Rc1 {[%emt 0:00:04]} Rd7 {[%emt 0:00:08]} 25. a5 {[%emt 0:00:04]} Kf7 {[%emt 0:00:11]} 26. Bc5 {[%emt 0:00:06]} e5 {[%emt 0:00:19]} 27. Rd1 {[%emt 0:00:04]} Be6 {[%emt 0:00:07]} 28. Bg2 {[%emt 0:00:05]} c6 {[%emt 0:00:01]} 29. Bf1 {[%emt 0:00:10]} h5 {[%emt 0:00:03]} 30. Bd3 {[%emt 0:00:03]} Bd5 {[%emt 0:00:04]} 31. Re1 {[%emt 0:00:02]} Bf6 {[%emt 0:00:07]} 32. Kh2 {[%emt 0:00:12]} Be6 {[%emt 0:00:01]} 33. f4 {[%emt 0:00:02]} exf4 {[%emt 0:00:05]} 34. gxf4 {[%emt 0:00:01]} Bf5 {[%emt 0:00:04]} 35. Bc4+ {[%emt 0:00:01]} Kg7 {[%emt 0:00:01]} 36. Re8 {[%emt 0:00:01]} d3 {[%emt 0:00:07]} 37. Bf8+ {[%emt 0:00:07]} Kh7 {[%emt 0:00:04]} 38. Bb4 {[%emt 0:00:03]} d2 {[%emt 0:00:02]} 39. Bg8+ {[%emt 0:00:03]} Kg7 {[%emt 0:00:01]} 40. Bb3 {[%emt 0:00:03]} d1=Q {[%emt 0:00:05]} 41. Bxd1 {[%emt 0:00:02]} Rxd1 {[%emt 0:00:01]} 42. Rb8 {[%emt 0:00:01]} Rd7 {[%emt 0:00:02]} 43. Bf8+ {[%emt 0:00:02]} Kf7 {[%emt 0:00:01]} 44. Bc5 {[%emt 0:00:00]} Be7 {[%emt 0:00:01]} 45. Bd4 {[%emt 0:00:02]} Bd6 {[%emt 0:00:02]} 46. Rh8 {[%emt 0:00:02]} Bxf4+ {[%emt 0:00:01]} 47. Kg2 {[%emt 0:00:00]} Rxd4 {[%emt 0:00:01]} 48. Rh7+ {[%emt 0:00:02]} Kf6 {[%emt 0:00:01]} 49. Rxb7 {[%emt 0:00:01]} Be4+ {[%emt 0:00:01]} 50. Kf2 {[%emt 0:00:01]} Rd2+ {[%emt 0:00:01]} 51. Ke1 {[%emt 0:00:01]} Ra2 {[%emt 0:00:02]} 52. Rb4 {[%emt 0:00:06]} Kf5 {[%emt 0:00:03]} 53. Rb7 {[%emt 0:00:02]} Be3 {[%emt 0:00:03]} 54. Rf7+ {[%emt 0:00:02]} Kg4 {[%emt 0:00:04]} 55. Re7 {[%emt 0:00:01]} Kf3 {[%emt 0:00:02]} 56. Rf7+ {[%emt 0:00:02]} Bf4 {[%emt 0:00:01]} 0-1